[Event "Titled Tuesday Blitz July 18 Late 2023"]
[White "Melnichuk, Mikhail"]
[Black "Arias Igual, Alejandro"]
[WhiteFideId "14117533"]
[BlackFideId "2254905"]
[WhiteElo "2472"]
[BlackElo "2316"]
[Result "1-0"]
[Round "5"]
[TimeControl "180+2"]
[Date "2023.07.18"]
[WhiteClock "0:00:13"]
[BlackClock "0:00:03"]
[Board "136"]

1. Nf3 {[%clk 0:02:55]}  d5 {[%clk 0:02:59]} 2. d4 {[%clk 0:02:54]}  e6 {[%clk 0:02:59]} 3. Bf4 {[%clk 0:02:54]}  Nf6 {[%clk 0:02:58]} 4. e3 {[%clk 0:02:54]}  Bd6 {[%clk 0:02:56]} 5. Bg3 {[%clk 0:02:54]}  O-O {[%clk 0:02:53]} 6. Bd3 {[%clk 0:02:54]}  c5 {[%clk 0:02:53]} 7. c3 {[%clk 0:02:52]}  Qc7 {[%clk 0:02:52]} 8. Nbd2 {[%clk 0:02:50]}  Nbd7 {[%clk 0:02:50]} 9. Qe2 {[%clk 0:02:47]}  e5 {[%clk 0:02:41]} 10. dxe5 {[%clk 0:02:18]}  Nxe5 {[%clk 0:02:42]} 11. Nxe5 {[%clk 0:02:17]}  Bxe5 {[%clk 0:02:43]} 12. Nf3 {[%clk 0:02:13]}  Bd6 {[%clk 0:02:32]} 13. O-O {[%clk 0:02:05]}  b6 {[%clk 0:02:27]} 14. Rfd1 {[%clk 0:02:03]}  Bxg3 {[%clk 0:02:23]} 15. hxg3 {[%clk 0:02:02]}  Bb7 {[%clk 0:02:22]} 16. Ba6 {[%clk 0:01:59]}  Rfe8 {[%clk 0:02:20]} 17. Bxb7 {[%clk 0:01:57]}  Qxb7 {[%clk 0:02:19]} 18. a4 {[%clk 0:01:55]}  a6 {[%clk 0:02:13]} 19. Qc2 {[%clk 0:01:52]}  g6 {[%clk 0:02:08]} 20. Qb3 {[%clk 0:01:51]}  Kg7 {[%clk 0:02:03]} 21. Ne1 {[%clk 0:01:51]}  Rad8 {[%clk 0:01:50]} 22. Qc2 {[%clk 0:01:47]}  Ne4 {[%clk 0:01:47]} 23. Nf3 {[%clk 0:01:43]}  Qc6 {[%clk 0:01:42]} 24. Nd2 {[%clk 0:01:40]}  Nf6 {[%clk 0:01:34]} 25. Nf3 {[%clk 0:01:39]}  h6 {[%clk 0:01:31]} 26. Qb3 {[%clk 0:01:38]}  Ne4 {[%clk 0:01:24]} 27. Nd2 {[%clk 0:01:35]}  c4 {[%clk 0:01:24]} 28. Qc2 {[%clk 0:01:34]}  Nc5 {[%clk 0:01:24]} 29. Nf3 {[%clk 0:01:30]}  Nd3 {[%clk 0:01:21]} 30. Ne1 {[%clk 0:01:22]}  Nc5 {[%clk 0:01:19]} 31. Nf3 {[%clk 0:01:17]}  Qf6 {[%clk 0:01:02]} 32. Nd4 {[%clk 0:01:11]}  Nd3 {[%clk 0:00:59]} 33. Rd2 {[%clk 0:01:07]}  h5 {[%clk 0:00:56]} 34. b3 {[%clk 0:01:04]}  h4 {[%clk 0:00:53]} 35. gxh4 {[%clk 0:00:59]}  Qxh4 {[%clk 0:00:53]} 36. Nf3 {[%clk 0:00:58]}  Qh5 {[%clk 0:00:52]} 37. Rxd3 {[%clk 0:00:50]}  cxd3 {[%clk 0:00:51]} 38. Qxd3 {[%clk 0:00:51]}  Re4 {[%clk 0:00:37]} 39. Rd1 {[%clk 0:00:35]}  Rh8 {[%clk 0:00:35]} 40. Kf1 {[%clk 0:00:30]}  Qh1+ {[%clk 0:00:29]} 41. Ke2 {[%clk 0:00:22]}  Qxg2 {[%clk 0:00:28]} 42. Qxd5 {[%clk 0:00:23]}  Re6 {[%clk 0:00:26]} 43. Qd4+ {[%clk 0:00:17]}  Kh7 {[%clk 0:00:03]} 44. Rg1 {[%clk 0:00:13]} 1-0


[Site "https://www.chess.com"]

[Event "Titled Tuesday Blitz July 18 Late 2023"]
[White "Deviprasath, Sharvesh"]
[Black "Miguelitro69"]
[WhiteFideId "30938228"]
[WhiteElo "2438"]
[BlackElo "2274"]
[Result "1-0"]
[Round "5"]
[TimeControl "180+2"]
[Date "2023.07.18"]
[WhiteClock "0:02:17"]
[BlackClock "0:01:04"]
[Board "140"]

1. Nf3 {[%clk 0:03:00]}  c5 {[%clk 0:02:59]} 2. b3 {[%clk 0:03:00]}  Nc6 {[%clk 0:02:59]} 3. Bb2 {[%clk 0:03:00]}  Nf6 {[%clk 0:02:59]} 4. e3 {[%clk 0:02:59]}  d5 {[%clk 0:02:54]} 5. Bb5 {[%clk 0:03:00]}  Bd7 {[%clk 0:02:53]} 6. O-O {[%clk 0:03:00]}  g6 {[%clk 0:02:52]} 7. Bxf6 {[%clk 0:02:54]}  exf6 {[%clk 0:02:51]} 8. d4 {[%clk 0:02:54]}  cxd4 {[%clk 0:02:40]} 9. Nxd4 {[%clk 0:02:55]}  Nxd4 {[%clk 0:02:39]} 10. Bxd7+ {[%clk 0:02:55]}  Qxd7 {[%clk 0:02:38]} 11. Qxd4 {[%clk 0:02:56]}  Bg7 {[%clk 0:02:37]} 12. Nc3 {[%clk 0:02:55]}  Rd8 {[%clk 0:02:26]} 13. Rad1 {[%clk 0:02:54]}  O-O {[%clk 0:02:24]} 14. Nxd5 {[%clk 0:02:55]}  Qe6 {[%clk 0:02:23]} 15. c4 {[%clk 0:02:55]}  f5 {[%clk 0:02:22]} 16. Qxa7 {[%clk 0:02:55]}  Ra8 {[%clk 0:02:13]} 17. Qxb7 {[%clk 0:02:55]}  Rxa2 {[%clk 0:02:13]} 18. c5 {[%clk 0:02:42]}  Rc2 {[%clk 0:02:06]} 19. Rc1 {[%clk 0:02:40]}  Rxc1 {[%clk 0:01:59]} 20. Rxc1 {[%clk 0:02:41]}  Rd8 {[%clk 0:01:56]} 21. Nf4 {[%clk 0:02:26]}  Qe5 {[%clk 0:01:46]} 22. c6 {[%clk 0:02:24]}  Qd6 {[%clk 0:01:41]} 23. h4 {[%clk 0:02:19]}  Be5 {[%clk 0:01:04]} 24. c7 {[%clk 0:02:17]} 1-0


[Site "https://www.chess.com"]

[Event "Titled Tuesday Blitz July 18 Late 2023"]
[White "rikchessmx"]
[Black "JonSnowNW1"]
[WhiteElo "2260"]
[BlackElo "2427"]
[Result "0-1"]
[Round "5"]
[TimeControl "180+2"]
[Date "2023.07.18"]
[WhiteClock "0:01:35"]
[BlackClock "0:00:55"]
[Board "141"]

1. e4 {[%clk 0:03:00]}  c5 {[%clk 0:02:58]} 2. Nf3 {[%clk 0:03:01]}  d6 {[%clk 0:02:58]} 3. d4 {[%clk 0:03:02]}  cxd4 {[%clk 0:02:59]} 4. Nxd4 {[%clk 0:03:02]}  Nf6 {[%clk 0:02:58]} 5. Nc3 {[%clk 0:03:03]}  a6 {[%clk 0:02:58]} 6. f4 {[%clk 0:03:03]}  Nbd7 {[%clk 0:02:57]} 7. Qf3 {[%clk 0:03:03]}  g6 {[%clk 0:02:56]} 8. g4 {[%clk 0:03:02]}  Bg7 {[%clk 0:02:38]} 9. g5 {[%clk 0:03:02]}  Nd5 {[%clk 0:02:38]} 10. Nxd5 {[%clk 0:02:59]}  Bxd4 {[%clk 0:02:37]} 11. c3 {[%clk 0:02:59]}  Bg7 {[%clk 0:02:35]} 12. h4 {[%clk 0:02:59]}  e6 {[%clk 0:02:29]} 13. Ne3 {[%clk 0:02:59]}  Qa5 {[%clk 0:02:18]} 14. Bd2 {[%clk 0:02:57]}  Qb6 {[%clk 0:02:08]} 15. O-O-O {[%clk 0:02:57]}  Nc5 {[%clk 0:02:07]} 16. Nc4 {[%clk 0:02:57]}  Qc6 {[%clk 0:02:06]} 17. Be3 {[%clk 0:02:52]}  O-O {[%clk 0:01:43]} 18. Rxd6 {[%clk 0:02:49]}  Qxe4 {[%clk 0:01:42]} 19. Bg2 {[%clk 0:02:41]}  Qxc4 {[%clk 0:01:41]} 20. Rd4 {[%clk 0:02:41]}  Bxd4 {[%clk 0:01:40]} 21. Bxd4 {[%clk 0:02:41]}  e5 {[%clk 0:01:37]} 22. fxe5 {[%clk 0:02:38]}  Bf5 {[%clk 0:01:36]} 23. b3 {[%clk 0:02:32]}  Nd3+ {[%clk 0:01:35]} 24. Kd2 {[%clk 0:02:31]}  Qb5 {[%clk 0:01:23]} 25. h5 {[%clk 0:02:26]}  Nxe5 {[%clk 0:01:23]} 26. Qg3 {[%clk 0:02:24]}  Qd3+ {[%clk 0:01:19]} 27. Qxd3 {[%clk 0:02:22]}  Nxd3 {[%clk 0:01:20]} 28. hxg6 {[%clk 0:02:18]}  fxg6 {[%clk 0:01:21]} 29. Bd5+ {[%clk 0:02:18]}  Rf7 {[%clk 0:01:21]} 30. Bxf7+ {[%clk 0:02:17]}  Kxf7 {[%clk 0:01:21]} 31. Rxh7+ {[%clk 0:02:18]}  Ke6 {[%clk 0:01:21]} 32. Rxb7 {[%clk 0:02:17]}  Be4 {[%clk 0:01:15]} 33. Rb6+ {[%clk 0:02:17]}  Kf5 {[%clk 0:01:15]} 34. Bf6 {[%clk 0:02:14]}  Nc5 {[%clk 0:01:11]} 35. b4 {[%clk 0:01:57]}  Na4 {[%clk 0:01:11]} 36. Rd6 {[%clk 0:01:52]}  Nb2 {[%clk 0:01:11]} 37. Rd4 {[%clk 0:01:43]}  Rc8 {[%clk 0:01:09]} 38. Ke3 {[%clk 0:01:42]}  Rxc3+ {[%clk 0:01:09]} 39. Kd2 {[%clk 0:01:40]}  Rc2+ {[%clk 0:01:09]} 40. Ke3 {[%clk 0:01:40]}  Nc4+ {[%clk 0:01:07]} 41. Rxc4 {[%clk 0:01:38]}  Rxc4 {[%clk 0:01:08]} 42. a3 {[%clk 0:01:38]}  Bc6 {[%clk 0:01:07]} 43. Kd3 {[%clk 0:01:37]}  Bb5 {[%clk 0:01:06]} 44. a4 {[%clk 0:01:37]}  Rxb4+ {[%clk 0:01:06]} 45. axb5 {[%clk 0:01:36]}  Rxb5 {[%clk 0:01:05]} 46. Kc4 {[%clk 0:01:36]}  Rb7 {[%clk 0:01:03]} 47. Kc5 {[%clk 0:01:35]}  a5 {[%clk 0:01:03]} 48. Kc6 {[%clk 0:01:36]}  Rb1 {[%clk 0:01:03]} 49. Kc5 {[%clk 0:01:36]}  a4 {[%clk 0:01:03]} 50. Kc4 {[%clk 0:01:36]}  a3 {[%clk 0:00:58]} 51. Kc3 {[%clk 0:01:37]}  a2 {[%clk 0:00:59]} 52. Kc2 {[%clk 0:01:38]}  a1=Q {[%clk 0:00:54]} 53. Bxa1 {[%clk 0:01:35]}  Rxa1 {[%clk 0:00:55]} 0-1


[Site "https://www.chess.com"]

[Event "Titled Tuesday Blitz July 18 Late 2023"]
[White "Kuchava, Ana"]
[Black "Yolosz"]
[WhiteFideId "13605348"]
[WhiteElo "2236"]
[BlackElo "2395"]
[Result "0-1"]
[Round "5"]
[TimeControl "180+2"]
[Date "2023.07.18"]
[WhiteClock "0:00:00"]
[BlackClock "0:00:10"]
[Board "145"]

1. d4 {[%clk 0:02:56]}  Nf6 {[%clk 0:02:57]} 2. Nf3 {[%clk 0:02:54]}  e6 {[%clk 0:02:57]} 3. c4 {[%clk 0:02:49]}  d5 {[%clk 0:02:54]} 4. Nc3 {[%clk 0:02:46]}  Bb4 {[%clk 0:02:54]} 5. Qa4+ {[%clk 0:02:45]}  Nc6 {[%clk 0:02:53]} 6. e3 {[%clk 0:02:44]}  O-O {[%clk 0:02:37]} 7. Bd3 {[%clk 0:02:39]}  a6 {[%clk 0:02:00]} 8. Qc2 {[%clk 0:02:36]}  Re8 {[%clk 0:01:43]} 9. O-O {[%clk 0:02:34]}  Bf8 {[%clk 0:01:41]} 10. Bd2 {[%clk 0:02:13]}  Nb4 {[%clk 0:01:40]} 11. Qc1 {[%clk 0:02:13]}  Nxd3 {[%clk 0:01:40]} 12. Qc2 {[%clk 0:02:07]}  dxc4 {[%clk 0:01:37]} 13. e4 {[%clk 0:02:00]}  b5 {[%clk 0:01:32]} 14. b3 {[%clk 0:01:35]}  Bb7 {[%clk 0:01:26]} 15. e5 {[%clk 0:01:24]}  Ne4 {[%clk 0:01:15]} 16. bxc4 {[%clk 0:01:21]}  bxc4 {[%clk 0:01:11]} 17. Nxe4 {[%clk 0:01:14]}  Bxe4 {[%clk 0:01:12]} 18. Qxc4 {[%clk 0:01:14]}  c5 {[%clk 0:01:02]} 19. Ng5 {[%clk 0:01:09]}  Bg6 {[%clk 0:00:58]} 20. dxc5 {[%clk 0:01:03]}  Nxe5 {[%clk 0:00:55]} 21. Qc3 {[%clk 0:00:57]}  Nc6 {[%clk 0:00:39]} 22. Be3 {[%clk 0:00:52]}  Be7 {[%clk 0:00:38]} 23. Nf3 {[%clk 0:00:51]}  Bf6 {[%clk 0:00:38]} 24. Qa3 {[%clk 0:00:39]}  Bxa1 {[%clk 0:00:37]} 25. Rxa1 {[%clk 0:00:40]}  Qd3 {[%clk 0:00:36]} 26. Qa4 {[%clk 0:00:39]}  Qb5 {[%clk 0:00:35]} 27. Qh4 {[%clk 0:00:37]}  Qb4 {[%clk 0:00:31]} 28. Qg3 {[%clk 0:00:34]}  Red8 {[%clk 0:00:29]} 29. h4 {[%clk 0:00:33]}  h5 {[%clk 0:00:24]} 30. Qc7 {[%clk 0:00:29]}  Rac8 {[%clk 0:00:23]} 31. Qg3 {[%clk 0:00:27]}  Qb2 {[%clk 0:00:22]} 32. Re1 {[%clk 0:00:23]}  Qxa2 {[%clk 0:00:22]} 33. Bg5 {[%clk 0:00:20]}  Rd5 {[%clk 0:00:20]} 34. Be3 {[%clk 0:00:17]}  a5 {[%clk 0:00:17]} 35. Nd2 {[%clk 0:00:16]}  a4 {[%clk 0:00:14]} 36. Qf3 {[%clk 0:00:11]}  a3 {[%clk 0:00:13]} 37. Ne4 {[%clk 0:00:10]}  Bxe4 {[%clk 0:00:12]} 38. Qxe4 {[%clk 0:00:09]}  Qb2 {[%clk 0:00:11]} 39. Bf4 {[%clk 0:00:07]}  a2 {[%clk 0:00:10]} 40. Bd6 {[%clk 0:00:04]}  a1=Q {[%clk 0:00:10]} 41. Rxa1 {[%clk 0:00:04]}  Qxa1+ {[%clk 0:00:11]} 42. Kh2 {[%clk 0:00:04]}  Qd4 {[%clk 0:00:11]} 43. Qf3 {[%clk 0:00:00]}  Rxd6 {[%clk 0:00:10]} 0-1


[Site "https://www.chess.com"]

[Event "Titled Tuesday Blitz July 18 Late 2023"]
[White "Jonkman, Harmen"]
[Black "SoyuzTM4"]
[WhiteFideId "1002708"]
[WhiteElo "2391"]
[BlackElo "2234"]
[Result "1-0"]
[Round "5"]
[TimeControl "180+2"]
[Date "2023.07.18"]
[WhiteClock "0:00:08"]
[BlackClock "0:00:15"]
[Board "146"]

1. d4 {[%clk 0:02:55]}  Nf6 {[%clk 0:02:57]} 2. Nf3 {[%clk 0:02:55]}  d5 {[%clk 0:02:55]} 3. Bf4 {[%clk 0:02:54]}  Bg4 {[%clk 0:02:55]} 4. h3 {[%clk 0:02:52]}  Bxf3 {[%clk 0:02:54]} 5. gxf3 {[%clk 0:02:44]}  g6 {[%clk 0:02:41]} 6. e3 {[%clk 0:02:26]}  Bg7 {[%clk 0:02:40]} 7. c4 {[%clk 0:02:24]}  O-O {[%clk 0:02:39]} 8. Nc3 {[%clk 0:02:23]}  c6 {[%clk 0:02:33]} 9. Qb3 {[%clk 0:02:10]}  Qb6 {[%clk 0:02:29]} 10. c5 {[%clk 0:01:30]}  Qxb3 {[%clk 0:02:28]} 11. axb3 {[%clk 0:01:30]}  Nbd7 {[%clk 0:02:27]} 12. b4 {[%clk 0:01:25]}  Nh5 {[%clk 0:02:26]} 13. Bh2 {[%clk 0:01:23]}  e5 {[%clk 0:02:26]} 14. O-O-O {[%clk 0:01:14]}  a5 {[%clk 0:01:46]} 15. b5 {[%clk 0:01:13]}  exd4 {[%clk 0:01:42]} 16. exd4 {[%clk 0:01:12]}  Bh6+ {[%clk 0:01:41]} 17. Kc2 {[%clk 0:01:10]}  Bf4 {[%clk 0:01:40]} 18. b6 {[%clk 0:00:47]}  Rfe8 {[%clk 0:01:34]} 19. Bd3 {[%clk 0:00:34]}  Nf8 {[%clk 0:01:29]} 20. Ne2 {[%clk 0:00:23]}  Bxh2 {[%clk 0:01:24]} 21. Rxh2 {[%clk 0:00:23]}  Ne6 {[%clk 0:01:23]} 22. Kc3 {[%clk 0:00:23]}  Ng5 {[%clk 0:01:20]} 23. Ng1 {[%clk 0:00:19]}  Nf4 {[%clk 0:01:18]} 24. h4 {[%clk 0:00:17]}  Nge6 {[%clk 0:01:15]} 25. Nh3 {[%clk 0:00:15]}  Nh5 {[%clk 0:01:07]} 26. Rhh1 {[%clk 0:00:14]}  a4 {[%clk 0:01:06]} 27. Ra1 {[%clk 0:00:14]}  Ra5 {[%clk 0:00:53]} 28. Ra3 {[%clk 0:00:14]}  f5 {[%clk 0:00:47]} 29. Rha1 {[%clk 0:00:14]}  Rea8 {[%clk 0:00:47]} 30. b3 {[%clk 0:00:08]}  Nhf4 {[%clk 0:00:36]} 31. Nxf4 {[%clk 0:00:07]}  Nxf4 {[%clk 0:00:36]} 32. Bf1 {[%clk 0:00:07]}  Kf7 {[%clk 0:00:29]} 33. Rxa4 {[%clk 0:00:07]}  Rxa4 {[%clk 0:00:28]} 34. Rxa4 {[%clk 0:00:08]}  Rxa4 {[%clk 0:00:28]} 35. bxa4 {[%clk 0:00:08]}  Ke7 {[%clk 0:00:28]} 36. a5 {[%clk 0:00:09]}  Kd8 {[%clk 0:00:26]} 37. a6 {[%clk 0:00:09]}  Kc8 {[%clk 0:00:15]} 38. a7 {[%clk 0:00:08]} 1-0


[Site "https://www.chess.com"]

[Event "Titled Tuesday Blitz July 18 Late 2023"]
[White "Ortega Ruiz, Jose Miguel"]
[Black "Kalaiyalahan, Akshaya"]
[WhiteFideId "2209713"]
[BlackFideId "422894"]
[WhiteElo "2382"]
[BlackElo "2234"]
[Result "0-1"]
[Round "5"]
[TimeControl "180+2"]
[Date "2023.07.18"]
[WhiteClock "0:00:05"]
[BlackClock "0:00:10"]
[Board "147"]

1. e4 {[%clk 0:01:57]}  c5 {[%clk 0:02:58]} 2. b4 {[%clk 0:01:55]}  d6 {[%clk 0:02:47]} 3. bxc5 {[%clk 0:01:54]}  dxc5 {[%clk 0:02:46]} 4. Nf3 {[%clk 0:01:54]}  Nc6 {[%clk 0:02:46]} 5. Bb5 {[%clk 0:01:51]}  Bd7 {[%clk 0:02:43]} 6. O-O {[%clk 0:01:50]}  a6 {[%clk 0:02:42]} 7. Bxc6 {[%clk 0:01:50]}  Bxc6 {[%clk 0:02:42]} 8. Re1 {[%clk 0:01:49]}  e6 {[%clk 0:02:38]} 9. c3 {[%clk 0:01:41]}  Nf6 {[%clk 0:02:37]} 10. Qc2 {[%clk 0:01:23]}  Be7 {[%clk 0:02:28]} 11. Ne5 {[%clk 0:01:19]}  Rc8 {[%clk 0:02:18]} 12. d3 {[%clk 0:01:11]}  O-O {[%clk 0:02:11]} 13. Bf4 {[%clk 0:01:03]}  Nd7 {[%clk 0:01:43]} 14. Nxc6 {[%clk 0:01:00]}  Rxc6 {[%clk 0:01:42]} 15. Nd2 {[%clk 0:00:59]}  Bf6 {[%clk 0:01:38]} 16. e5 {[%clk 0:00:54]}  Bg5 {[%clk 0:01:38]} 17. Bg3 {[%clk 0:00:50]}  Bxd2 {[%clk 0:01:32]} 18. Qxd2 {[%clk 0:00:51]}  Nb6 {[%clk 0:01:31]} 19. Rab1 {[%clk 0:00:46]}  Qd7 {[%clk 0:01:27]} 20. Re4 {[%clk 0:00:34]}  Nd5 {[%clk 0:01:12]} 21. h4 {[%clk 0:00:29]}  Rd8 {[%clk 0:01:12]} 22. h5 {[%clk 0:00:28]}  Ne7 {[%clk 0:01:10]} 23. d4 {[%clk 0:00:25]}  Nf5 {[%clk 0:01:08]} 24. h6 {[%clk 0:00:20]}  cxd4 {[%clk 0:01:00]} 25. Qg5 {[%clk 0:00:18]}  Nxh6 {[%clk 0:00:55]} 26. cxd4 {[%clk 0:00:18]}  Nf5 {[%clk 0:00:46]} 27. Rg4 {[%clk 0:00:18]}  h6 {[%clk 0:00:43]} 28. Qh5 {[%clk 0:00:17]}  Rc4 {[%clk 0:00:32]} 29. Bh4 {[%clk 0:00:11]}  Rdc8 {[%clk 0:00:29]} 30. Bf6 {[%clk 0:00:11]}  g6 {[%clk 0:00:21]} 31. Rxg6+ {[%clk 0:00:09]}  fxg6 {[%clk 0:00:21]} 32. Qxg6+ {[%clk 0:00:10]}  Ng7 {[%clk 0:00:21]} 33. Kh2 {[%clk 0:00:06]}  Qf7 {[%clk 0:00:13]} 34. Qg3 {[%clk 0:00:06]}  Qh5+ {[%clk 0:00:11]} 35. Kg1 {[%clk 0:00:05]}  Rc1+ {[%clk 0:00:10]} 36. Rxc1 {[%clk 0:00:05]}  Rxc1# {[%clk 0:00:10]} 0-1


[Site "https://www.chess.com"]

[Event "Titled Tuesday Blitz July 18 Late 2023"]
[White "Mangialardo, Tiago Carvalho"]
[Black "Rodriguez Santiago, Jaime"]
[WhiteFideId "2130718"]
[BlackFideId "3100898"]
[WhiteElo "2148"]
[BlackElo "2355"]
[Result "0-1"]
[Round "5"]
[TimeControl "180+2"]
[Date "2023.07.18"]
[WhiteClock "0:00:00"]
[BlackClock "0:01:30"]
[Board "152"]

1. e4 {[%clk 0:03:00]}  c6 {[%clk 0:02:59]} 2. c4 {[%clk 0:03:00]}  d5 {[%clk 0:02:58]} 3. exd5 {[%clk 0:03:01]}  cxd5 {[%clk 0:02:57]} 4. cxd5 {[%clk 0:03:02]}  Nf6 {[%clk 0:02:57]} 5. Bb5+ {[%clk 0:03:03]}  Nbd7 {[%clk 0:02:51]} 6. Nc3 {[%clk 0:03:02]}  a6 {[%clk 0:02:51]} 7. Ba4 {[%clk 0:03:02]}  b5 {[%clk 0:02:49]} 8. Bb3 {[%clk 0:03:02]}  Bb7 {[%clk 0:02:50]} 9. a4 {[%clk 0:03:02]}  b4 {[%clk 0:02:48]} 10. Nce2 {[%clk 0:02:55]}  Nc5 {[%clk 0:02:47]} 11. Nf3 {[%clk 0:02:49]}  Nd3+ {[%clk 0:02:38]} 12. Kf1 {[%clk 0:02:49]}  Qb6 {[%clk 0:02:30]} 13. Ned4 {[%clk 0:02:36]}  Nxd5 {[%clk 0:02:28]} 14. a5 {[%clk 0:02:33]}  Qa7 {[%clk 0:02:24]} 15. Ba4+ {[%clk 0:01:39]}  Kd8 {[%clk 0:02:15]} 16. Qc2 {[%clk 0:01:27]}  N5f4 {[%clk 0:01:51]} 17. Bb3 {[%clk 0:00:05]}  Rc8 {[%clk 0:01:47]} 18. Bc4 {[%clk 0:00:05]}  e5 {[%clk 0:01:42]} 19. Qb3 {[%clk 0:00:04]}  Bxf3 {[%clk 0:01:36]} 20. Bxd3 {[%clk 0:00:01]}  Bxg2+ {[%clk 0:01:33]} 21. Kg1 {[%clk 0:00:00]}  Qxd4 {[%clk 0:01:30]} 0-1


[Site "https://www.chess.com"]

[Event "Titled Tuesday Blitz July 18 Late 2023"]
[White "Tqebuchava, Zurab"]
[Black "Bogaudinov, Rushan"]
[WhiteFideId "13601113"]
[BlackFideId "4129288"]
[WhiteElo "2118"]
[BlackElo "2355"]
[Result "0-1"]
[Round "5"]
[TimeControl "180+2"]
[Date "2023.07.18"]
[WhiteClock "0:00:00"]
[BlackClock "0:00:16"]
[Board "153"]

1. e4 {[%clk 0:03:00]}  a6 {[%clk 0:01:57]} 2. b3 {[%clk 0:02:56]}  b5 {[%clk 0:01:56]} 3. Bb2 {[%clk 0:02:56]}  Bb7 {[%clk 0:01:57]} 4. d3 {[%clk 0:02:55]}  e6 {[%clk 0:01:57]} 5. Nf3 {[%clk 0:02:54]}  d5 {[%clk 0:01:57]} 6. exd5 {[%clk 0:02:53]}  Qxd5 {[%clk 0:01:56]} 7. Be2 {[%clk 0:02:49]}  c5 {[%clk 0:01:56]} 8. Nbd2 {[%clk 0:02:32]}  Nf6 {[%clk 0:01:55]} 9. c4 {[%clk 0:02:16]}  Qd8 {[%clk 0:01:50]} 10. O-O {[%clk 0:02:13]}  Be7 {[%clk 0:01:50]} 11. Ne5 {[%clk 0:02:10]}  O-O {[%clk 0:01:49]} 12. Bf3 {[%clk 0:02:08]}  Ra7 {[%clk 0:01:48]} 13. Bxb7 {[%clk 0:02:05]}  Rxb7 {[%clk 0:01:49]} 14. Qf3 {[%clk 0:02:03]}  Rb6 {[%clk 0:01:48]} 15. Ne4 {[%clk 0:01:56]}  Nxe4 {[%clk 0:01:45]} 16. dxe4 {[%clk 0:01:54]}  Bf6 {[%clk 0:01:45]} 17. Rab1 {[%clk 0:01:14]}  Rd6 {[%clk 0:01:41]} 18. cxb5 {[%clk 0:01:08]}  axb5 {[%clk 0:01:40]} 19. Ng4 {[%clk 0:00:54]}  Bxb2 {[%clk 0:01:39]} 20. Rxb2 {[%clk 0:00:55]}  Nc6 {[%clk 0:01:34]} 21. Qg3 {[%clk 0:00:50]}  Rd3 {[%clk 0:01:30]} 22. Qf4 {[%clk 0:00:44]}  Qd4 {[%clk 0:01:15]} 23. Rc2 {[%clk 0:00:42]}  f6 {[%clk 0:00:54]} 24. h4 {[%clk 0:00:42]}  h5 {[%clk 0:00:54]} 25. Ne3 {[%clk 0:00:39]}  Ne5 {[%clk 0:00:49]} 26. Rfc1 {[%clk 0:00:33]}  Rc8 {[%clk 0:00:44]} 27. a4 {[%clk 0:00:30]}  bxa4 {[%clk 0:00:44]} 28. bxa4 {[%clk 0:00:30]}  c4 {[%clk 0:00:43]} 29. a5 {[%clk 0:00:27]}  c3 {[%clk 0:00:43]} 30. a6 {[%clk 0:00:25]}  Ra8 {[%clk 0:00:37]} 31. Qg3 {[%clk 0:00:18]}  Rxa6 {[%clk 0:00:33]} 32. Qh3 {[%clk 0:00:18]}  Ng4 {[%clk 0:00:30]} 33. Qf3 {[%clk 0:00:11]}  Nxe3 {[%clk 0:00:28]} 34. Qxh5 {[%clk 0:00:09]}  Rd1+ {[%clk 0:00:20]} 35. Kh2 {[%clk 0:00:07]}  Qe5+ {[%clk 0:00:19]} 36. Qxe5 {[%clk 0:00:06]}  fxe5 {[%clk 0:00:19]} 37. fxe3 {[%clk 0:00:06]}  Rxc1 {[%clk 0:00:19]} 38. Rxc1 {[%clk 0:00:06]}  Rc6 {[%clk 0:00:19]} 39. Rc2 {[%clk 0:00:05]}  Kh7 {[%clk 0:00:18]} 40. Kg3 {[%clk 0:00:06]}  Kh6 {[%clk 0:00:18]} 41. Kg4 {[%clk 0:00:06]}  Kg6 {[%clk 0:00:18]} 42. h5+ {[%clk 0:00:05]}  Kh6 {[%clk 0:00:18]} 43. g3 {[%clk 0:00:03]}  Rc4 {[%clk 0:00:19]} 44. Kh4 {[%clk 0:00:02]}  Rxe4+ {[%clk 0:00:17]} 45. g4 {[%clk 0:00:03]}  Rxe3 {[%clk 0:00:16]} 46. g5+ {[%clk 0:00:00]}  Kh7 {[%clk 0:00:16]} 0-1


[Site "https://www.chess.com"]

[Event "Titled Tuesday Blitz July 18 Late 2023"]
[White "AndresDelgado77"]
[Black "Joubert, Dantelle"]
[BlackFideId "14310813"]
[WhiteElo "2343"]
[BlackElo "2066"]
[Result "1-0"]
[Round "5"]
[TimeControl "180+2"]
[Date "2023.07.18"]
[WhiteClock "0:00:18"]
[BlackClock "0:00:00"]
[Board "156"]

1. e4 {[%clk 0:02:59]}  c5 {[%clk 0:02:58]} 2. Nf3 {[%clk 0:02:57]}  d6 {[%clk 0:02:58]} 3. d4 {[%clk 0:02:54]}  cxd4 {[%clk 0:02:55]} 4. Qxd4 {[%clk 0:02:54]}  Nc6 {[%clk 0:02:52]} 5. Bb5 {[%clk 0:02:53]}  Bd7 {[%clk 0:02:52]} 6. Qd3 {[%clk 0:02:52]}  g6 {[%clk 0:02:50]} 7. Nc3 {[%clk 0:02:50]}  Bg7 {[%clk 0:02:49]} 8. Bg5 {[%clk 0:02:50]}  Nf6 {[%clk 0:02:49]} 9. O-O-O {[%clk 0:02:32]}  Ng4 {[%clk 0:02:16]} 10. Rd2 {[%clk 0:02:16]}  O-O {[%clk 0:01:54]} 11. Nd5 {[%clk 0:01:58]}  f6 {[%clk 0:01:38]} 12. Bf4 {[%clk 0:01:35]}  Nce5 {[%clk 0:01:16]} 13. Qb3 {[%clk 0:01:17]}  Kh8 {[%clk 0:01:03]} 14. Bxd7 {[%clk 0:01:10]}  Qxd7 {[%clk 0:00:59]} 15. h3 {[%clk 0:01:05]}  Nxf3 {[%clk 0:00:56]} 16. gxf3 {[%clk 0:00:46]}  Ne5 {[%clk 0:00:55]} 17. Bg3 {[%clk 0:00:32]}  Rfe8 {[%clk 0:00:35]} 18. f4 {[%clk 0:00:27]}  Nc6 {[%clk 0:00:33]} 19. f5 {[%clk 0:00:22]}  gxf5 {[%clk 0:00:20]} 20. exf5 {[%clk 0:00:22]}  Qxf5 {[%clk 0:00:19]} 21. Nc7 {[%clk 0:00:20]}  Bh6 {[%clk 0:00:18]} 22. f4 {[%clk 0:00:19]}  Bxf4 {[%clk 0:00:14]} 23. Bxf4 {[%clk 0:00:19]}  Qxf4 {[%clk 0:00:14]} 24. Nxa8 {[%clk 0:00:18]}  Rxa8 {[%clk 0:00:00]} 25. Qxb7 {[%clk 0:00:18]} 1-0


[Site "https://www.chess.com"]